bitfinex/quotes_BTCUSD_20250727
["timestamp","ask_amount","ask_price","bid_price","bid_amount"]
[1753634140775,0.50644261,119640.0,119630.0,0.63640892]
[1753634140985,0.51480073,119640.0,119630.0,0.61969121]
[1753634141214,0.51480073,119640.0,119630.0,0.63640892]
[1753634141442,0.64696087,119640.0,119630.0,0.61969121]
[1753634141647,0.63860261,119640.0,119630.0,0.64476781]
[1753634141875,0.63860261,119640.0,119630.0,0.63640899]
[1753634142099,0.64696073,119640.0,119630.0,0.62805017]
[1753634142354,0.65531892,119640.0,119630.0,0.62805017]
[1753634142763,0.49808456,119640.0,119630.0,0.63640899]
[1753634142972,0.63024463,119640.0,119630.0,0.63640864]
[1753634143212,0.63024449,119640.0,119630.0,0.64476732]
[1753634143434,0.63024435,119640.0,119630.0,0.63640829]
[1753634143648,0.62188644,119640.0,119630.0,0.6447669]
[1753634143854,0.6698024,119640.0,119630.0,0.56977308]
[1753634144070,0.67816066,119640.0,119630.0,0.40259094]
[1753634144269,0.68651899,119640.0,119630.0,0.41930907]
[1753634144491,0.66144526,119640.0,119630.0,0.0503993]
[1753634144712,1.4392142,119640.0,119630.0,0.00088277]
[1753634145683,1.08702256,119640.0,119630.0,0.00088277]
[1753634145949,1.08002256,119640.0,119630.0,0.00088277]
[1753634146371,1.09302256,119640.0,119630.0,0.00088277]
[1753634147007,0.84408526,119640.0,119630.0,0.35307441]
[1753634147209,0.97024526,119640.0,119630.0,0.35307441]
[1753634147422,0.96188672,119640.0,119630.0,0.57813211]
[1753634147624,0.87122282,119640.0,119630.0,0.1852293]
[1753634147834,0.86422282,119640.0,119630.0,0.54578004]
[1753634148049,0.97760275,119640.0,119630.0,0.71296218]
[1753634148322,0.99296108,119640.0,119630.0,0.1852293]
[1753634148506,0.98596108,119640.0,119630.0,0.0822993]
[1753634148714,0.98596108,119640.0,119630.0,0.43449094]
[1753634148922,0.98296108,119640.0,119630.0,0.43449094]
[1753634149138,0.97460275,119640.0,119630.0,0.61839121]
[1753634149341,0.98896101,119640.0,119630.0,0.43449094]
[1753634149810,0.98296101,119640.0,119630.0,0.0822993]
[1753634149991,0.98296101,119640.0,119630.0,0.60167308]
[1753634150242,0.98796101,119640.0,119630.0,0.1151993]
[1753634150454,0.97124512,119640.0,119630.0,0.00088277]
[1753634150667,1.35573676,119640.0,119630.0,0.00088277]
[1753634150875,1.44021406,119640.0,119630.0,0.00088277]
[1753634151502,1.44803044,119640.0,119630.0,0.00088277]
[1753634152251,1.44803094,119640.0,119630.0,0.00088277]
[1753634152478,1.0958393,119640.0,119630.0,0.00088277]
[1753634152699,1.44803094,119640.0,119630.0,0.00088277]
[1753634152914,1.44802939,119640.0,119630.0,0.00088277]
[1753634153411,1.44021406,119640.0,119630.0,0.00088277]
[1753634153628,1.44802841,119640.0,119630.0,0.00088277]
[1753634155338,1.29663677,119640.0,119630.0,0.00088277]
[1753634155563,1.64882841,119640.0,119630.0,0.00088277]
[1753634156449,1.31586841,119640.0,119630.0,0.00088277]
[1753634156672,1.64882841,119640.0,119630.0,0.00088277]
[1753634158242,1.66627743,119640.0,119630.0,0.00088277]
[1753634158725,6.71627743,119640.0,119630.0,0.00088277]
[1753634158944,6.71627743,119640.0,119620.0,0.003]
[1753634158945,0.57628176,119630.0,119620.0,0.003]
[1753634159174,1.25283341,119630.0,119620.0,0.003]
[1753634159409,1.12067341,119630.0,119620.0,0.003]
[1753634159628,1.25283341,119630.0,119620.0,0.003]
[1753634160237,1.26083341,119630.0,119620.0,0.003]
[1753634160454,1.26683341,119630.0,119620.0,0.003]
[1753634161180,0.93975777,119630.0,119620.0,0.003]
[1753634161428,1.29194941,119630.0,119620.0,0.003]
[1753634161881,2.12676366,119630.0,119620.0,0.003]
[1753634162885,1.34243288,119630.0,119620.0,0.003]
[1753634163304,0.99024124,119630.0,119620.0,0.003]
[1753634163511,1.34243288,119630.0,119620.0,0.003]
[1753634166277,2.12676366,119630.0,119620.0,0.003]
[1753634166963,7.12676366,119630.0,119620.0,1e-08]
[1753634167439,0.88974902,119600.0,119590.0,1e-08]
[1753634167693,1.14410745,119600.0,119590.0,1e-08]
[1753634167906,1.30407745,119600.0,119590.0,1e-08]
[1753634168353,1.30406455,119600.0,119590.0,1e-08]
[1753634168563,1.32918655,119600.0,119590.0,1e-08]
[1753634168772,1.33318655,119600.0,119590.0,0.00048412]
[1753634169015,1.33318655,119600.0,119590.0,0.00048411]
[1753634169461,1.28318655,119600.0,119590.0,0.00048411]
[1753634169686,1.33318655,119600.0,119590.0,0.00048411]
[1753634169899,0.98099491,119600.0,119590.0,0.00048411]
[1753634170122,1.33318655,119600.0,119590.0,0.00048411]
[1753634172850,1.33208655,119600.0,119590.0,0.00048411]
[1753634173081,0.97989491,119600.0,119590.0,0.00048411]
[1753634173307,1.33208655,119600.0,119590.0,0.00048411]
[1753634173527,1.33212655,119600.0,119590.0,0.00048411]
[1753634173758,0.97993491,119600.0,119590.0,0.00048411]
[1753634174006,0.29698589,119600.0,119590.0,0.03773411]
[1753634174228,0.78137753,119600.0,119590.0,0.23864453]
[1753634174453,0.78350753,119600.0,119590.0,0.20309453]
[1753634174676,0.75838553,119600.0,119590.0,0.20309453]
[1753634174912,1.09838553,119600.0,119590.0,0.13544411]
[1753634175344,1.10131553,119600.0,119590.0,0.13544411]
[1753634175844,0.61399389,119600.0,119590.0,0.13544411]
[1753634176063,0.17559982,119590.0,119580.0,0.003]
[1753634176342,0.17559982,119590.0,119580.0,0.03825]
[1753634176343,0.52396151,119590.0,119580.0,0.03825]
[1753634176582,0.6640031,119590.0,119580.0,0.10590042]
[1753634176817,0.6640031,119590.0,119580.0,0.20666042]
[1753634177068,0.66400296,119590.0,119580.0,0.25617695]
[1753634177276,0.67236437,119590.0,119580.0,0.25617695]
[1753634177499,0.54848627,119590.0,119580.0,0.43179159]
[1753634177725,0.67236479,119590.0,119580.0,0.25617695]
[1753634178158,0.67236479,119590.0,119580.0,0.42342899]
[1753634178380,0.67236479,119590.0,119580.0,0.43179159]
[1753634178573,0.67236479,119590.0,119580.0,0.80907019]
[1753634178574,0.14004145,119590.0,119580.0,0.80907019]
[1753634178833,0.01672289,119590.0,119580.0,0.81743237]
[1753634179051,0.01672275,119590.0,119580.0,0.84783237]
[1753634179319,0.54459283,119600.0,119590.0,0.27985459]
[1753634179549,0.55295403,119600.0,119590.0,0.39402649]
[1753634179777,0.49284583,119600.0,119590.0,0.41911163]
[1753634180003,0.16956725,119600.0,119590.0,0.42747304]
[1753634180227,0.16912665,119600.0,119590.0,0.41911163]
[1753634180452,0.16556725,119600.0,119590.0,0.42747304]
[1753634180703,0.1577658,119600.0,119590.0,0.42747304]
[1753634181313,0.33335087,119600.0,119590.0,0.42111163]
[1753634181538,0.34115288,119600.0,119590.0,0.4211117]
[1753634181970,0.33279224,119600.0,119590.0,0.41075008]
[1753634182174,0.33279224,119600.0,119590.0,0.41375001]
[1753634182605,0.33279224,119600.0,119590.0,0.42211163]
[1753634182870,0.33279224,119600.0,119590.0,0.43047311]
[1753634182871,0.15720661,119600.0,119590.0,0.43047311]
[1753634183106,0.15876601,119600.0,119590.0,0.43747262]
[1753634183346,0.167127,119600.0,119590.0,0.43747262]
[1753634185381,0.33435108,119600.0,119590.0,0.41238811]
[1753634185671,0.33379984,119600.0,119590.0,0.41238811]
[1753634186092,0.33379984,119600.0,119590.0,0.42074973]
[1753634186305,0.33379984,119600.0,119590.0,0.42911128]
[1753634186529,0.33379984,119600.0,119590.0,0.42074973]
[1753634186719,0.33379984,119600.0,119590.0,0.42911128]
[1753634186963,0.34216104,119600.0,119590.0,0.42911128]
[1753634187214,0.34216104,119600.0,119590.0,0.41238811]
[1753634187471,0.33380019,119600.0,119590.0,0.40402642]
[1753634187701,0.33380019,119600.0,119590.0,0.41238818]
[1753634187933,0.66090858,119600.0,119590.0,0.22537653]
[1753634188153,0.31071694,119600.0,119590.0,0.22537653]
[1753634188378,0.66609858,119600.0,119590.0,0.22537653]
[1753634189444,0.31071694,119600.0,119590.0,0.40097635]
[1753634189670,0.32543857,119600.0,119590.0,0.40409649]
[1753634189900,0.00929286,119600.0,119590.0,0.99869029]
[1753634190148,0.00148381,119600.0,119590.0,1.06634071]
[1753634190920,0.00148381,119600.0,119590.0,1.17334071]
[1753634191145,0.00148381,119600.0,119590.0,1.19078973]
[1753634191371,0.13584,119630.0,119620.0,0.65908285]
[1753634191601,0.003,119630.0,119620.0,0.76458285]
[1753634192111,0.003,119630.0,119620.0,0.84906015]
[1753634193043,0.003,119630.0,119620.0,0.84911084]
[1753634193265,0.01135854,119630.0,119620.0,0.87258439]
[1753634193482,0.01135847,119630.0,119620.0,0.87258439]
[1753634193905,0.003,119630.0,119620.0,0.49686851]
[1753634194232,0.19671937,119640.0,119630.0,0.3031786]
[1753634194490,0.1889105,119640.0,119630.0,0.96844733]
[1753634194690,0.1889105,119640.0,119630.0,1.06875733]
[1753634195331,0.1889105,119640.0,119630.0,1.01853733]
[1753634195555,0.1889105,119640.0,119630.0,1.01861929]
[1753634196439,0.1889105,119640.0,119630.0,1.61084229]
[1753634196630,0.1889105,119640.0,119630.0,1.61484229]
[1753634197095,0.1889105,119640.0,119630.0,1.61084229]
[1753634197311,0.1889105,119640.0,119630.0,1.61184229]
[1753634197997,0.1889105,119640.0,119630.0,1.61684229]
[1753634198470,0.1889105,119640.0,119630.0,1.55530629]
[1753634198706,0.1889105,119640.0,119630.0,1.64020629]
[1753634198933,0.1889105,119640.0,119630.0,1.54567029]
[1753634201395,0.1889105,119640.0,119630.0,1.13461929]
[1753634201834,0.2962505,119640.0,119630.0,0.39303439]
[1753634202294,0.30460834,119640.0,119630.0,0.39303439]
[1753634202503,0.20245834,119640.0,119630.0,0.86906027]
[1753634202710,0.21081632,119640.0,119630.0,0.86906027]
[1753634202891,0.20245827,119640.0,119630.0,0.86906027]
[1753634203103,0.49685101,119640.0,119630.0,0.20077579]
[1753634203352,0.48013526,119640.0,119630.0,0.05559849]
[1753634203570,0.48013526,119640.0,119630.0,0.23113966]
[1753634203790,0.48013526,119640.0,119630.0,0.05559849]
[1753634204240,0.48013526,119640.0,119630.0,0.23113966]
[1753634204424,0.47177707,119640.0,119630.0,0.05559849]
[1753634204592,0.47177707,119640.0,119630.0,0.06395752]
[1753634204780,0.47177707,119640.0,119630.0,0.05559849]
[1753634205394,0.479553,119640.0,119630.0,0.23949876]
[1753634205597,0.479553,119640.0,119630.0,0.23113973]
[1753634205797,0.479553,119640.0,119630.0,0.05559849]
[1753634206010,0.479553,119640.0,119630.0,0.06395759]
[1753634206209,0.47955623,119640.0,119630.0,0.05559849]
[1753634206411,0.47955623,119640.0,119630.0,0.23113973]
[1753634206609,0.47955623,119640.0,119630.0,0.24785758]
[1753634206859,0.47955623,119640.0,119630.0,0.24776129]
[1753634207192,0.47955623,119640.0,119630.0,0.25612032]
[1753634207613,0.47955623,119640.0,119630.0,0.0555022]
[1753634208439,0.48773945,119640.0,119630.0,0.0555022]
[1753634209959,0.47955623,119640.0,119630.0,0.22268434]
[1753634210164,0.47955623,119640.0,119630.0,0.23940233]
[1753634210600,0.21023743,119640.0,119630.0,0.25611976]
[1753634210816,0.20187966,119640.0,119630.0,0.79821564]
[1753634211059,0.19668966,119640.0,119630.0,0.88269294]
[1753634211278,0.1889105,119640.0,119630.0,0.88581294]
[1753634211911,0.3214705,119640.0,119630.0,0.88581294]
[1753634215022,0.3214705,119640.0,119630.0,0.88269294]
[1753634215462,0.32926586,119640.0,119630.0,0.88269294]
[1753634217815,0.35109161,119640.0,119630.0,0.40459706]
[1753634218058,0.44268586,119640.0,119630.0,0.78031294]
[1753634218315,0.45104377,119640.0,119630.0,0.40459706]
[1753634218521,0.44268586,119640.0,119630.0,0.40459706]
[1753634218748,0.34273377,119640.0,119630.0,0.51024706]
[1753634218944,0.33437586,119640.0,119630.0,0.51024706]
[1753634220282,0.32926586,119640.0,119630.0,0.91369608]
[1753634221253,0.32928558,119640.0,119630.0,0.91369608]
[1753634221916,0.33132558,119640.0,119630.0,0.91369608]
[1753634222140,0.32928558,119640.0,119630.0,0.91369608]
[1753634222610,0.32928558,119640.0,119630.0,0.5379802]
[1753634223049,0.32928558,119640.0,119630.0,0.91369608]
[1753634223264,0.33132808,119640.0,119630.0,0.91369608]
[1753634223484,0.33439808,119640.0,119630.0,0.91369608]
[1753634225098,0.33132808,119640.0,119630.0,0.91369608]
[1753634225317,0.33132808,119640.0,119630.0,0.5379802]
[1753634225543,0.33132808,119640.0,119630.0,0.91369608]
[1753634225764,0.32928808,119640.0,119630.0,0.91369608]
[1753634226210,0.32928808,119640.0,119630.0,0.91361033]
[1753634226648,0.32928808,119640.0,119630.0,0.53789445]
[1753634227070,0.33439808,119640.0,119630.0,0.91361033]
[1753634227292,0.32928808,119640.0,119630.0,0.91361033]
[1753634228966,0.32928808,119640.0,119630.0,0.89007625]
[1753634230489,0.32928808,119640.0,119630.0,0.53789445]
[1753634230860,0.32928808,119640.0,119630.0,0.89007625]
[1753634231505,0.33439808,119640.0,119630.0,0.89007625]
[1753634232425,0.33439808,119640.0,119630.0,0.53789445]
[1753634232644,0.33439808,119640.0,119630.0,0.89007625]
[1753634234946,0.33439808,119640.0,119630.0,0.53789445]
[1753634235200,0.33439808,119640.0,119630.0,0.89007625]
[1753634235423,0.3265805,119640.0,119630.0,0.89007625]
[1753634235647,0.3265805,119640.0,119630.0,0.53789445]
[1753634235873,0.3265805,119640.0,119630.0,0.89007625]
[1753634237021,0.3265805,119640.0,119630.0,0.53789445]
[1753634237236,0.3265805,119640.0,119630.0,0.89007625]
[1753634241034,0.3265805,119640.0,119630.0,0.53789445]
[1753634241242,0.3265805,119640.0,119630.0,0.89007625]
[1753634241657,0.3235105,119640.0,119630.0,0.89007625]
[1753634243113,0.3235105,119640.0,119630.0,0.53789445]
[1753634243319,0.3235105,119640.0,119630.0,0.89007625]
[1753634243538,0.3265805,119640.0,119630.0,0.89007625]
[1753634244078,0.3265805,119640.0,119630.0,0.53789445]
[1753634244302,0.3265805,119640.0,119630.0,0.89007625]
[1753634245681,0.3265805,119640.0,119630.0,0.53789445]
[1753634245908,0.3261805,119640.0,119630.0,0.89007625]
[1753634247994,0.3261805,119640.0,119630.0,0.53789445]
[1753634248209,0.3261805,119640.0,119630.0,0.89007625]
[1753634250289,0.3261805,119640.0,119630.0,0.89091298]
[1753634250508,1.36329678,119640.0,119630.0,0.00673665]
[1753634250951,1.01111498,119640.0,119630.0,0.00673665]
[1753634251847,1.36329678,119640.0,119630.0,0.00173665]
[1753634252069,1.36329678,119640.0,119630.0,0.00473665]
[1753634252296,1.37166837,119640.0,119630.0,0.00473665]
[1753634253143,1.01948657,119640.0,119630.0,0.00473665]
[1753634253401,0.82492657,119640.0,119630.0,0.00473665]
[1753634253594,0.82492657,119640.0,119630.0,0.05425318]
[1753634253595,0.96539101,119640.0,119630.0,0.05425318]
[1753634254063,0.94867512,119640.0,119630.0,0.05335326]
[1753634254709,0.95693418,119640.0,119630.0,0.05335326]
[1753634255738,0.94867512,119640.0,119630.0,0.05335326]
[1753634256167,0.972617,119640.0,119630.0,0.00383673]
[1753634256608,0.94867512,119640.0,119630.0,0.00383673]
[1753634256824,0.95703352,119640.0,119630.0,0.18773679]
[1753634257028,0.95703352,119640.0,119630.0,0.19609561]
[1753634257234,0.95703352,119640.0,119630.0,0.18773686]
[1753634257748,0.95703352,119640.0,119630.0,0.1793779]
[1753634258048,0.95703352,119640.0,119630.0,0.18773686]
[1753634258266,0.78986465,119640.0,119630.0,0.35116075]
[1753634258488,0.87509955,119640.0,119630.0,0.38436089]
[1753634258699,0.96539171,119640.0,119630.0,0.37600214]
[1753634258923,0.78986514,119640.0,119630.0,0.2955295]
[1753634259140,0.95703331,119640.0,119630.0,0.2955295]
[1753634259415,0.96539171,119640.0,119630.0,0.2955295]
[1753634259632,0.96539171,119640.0,119630.0,0.00383673]
[1753634259633,1.4494345,119640.0,119630.0,0.00383673]
[1753634259860,1.4494345,119640.0,119630.0,0.00058673]
[1753634260279,0.26546425,119620.0,119610.0,8e-05]
[1753634260503,1.37710335,119620.0,119610.0,8e-05]
[1753634260734,1.48651781,119620.0,119610.0,8e-05]
[1753634260945,1.13433601,119620.0,119610.0,8e-05]
[1753634261146,1.50216703,119620.0,119610.0,8e-05]
[1753634261343,1.47869335,119620.0,119610.0,8e-05]
[1753634261555,1.50214377,119620.0,119610.0,8e-05]
[1753634262444,1.47869335,119620.0,119610.0,8e-05]
[1753634263265,0.97694253,119620.0,119610.0,8e-05]
[1753634263424,0.72971523,119620.0,119610.0,8e-05]
[1753634263622,0.86183523,119620.0,119610.0,8e-05]
[1753634264103,0.86483523,119620.0,119610.0,8e-05]
[1753634264310,0.96348523,119620.0,119610.0,8e-05]
[1753634264493,0.96048523,119620.0,119610.0,8e-05]
[1753634264701,0.96248523,119620.0,119610.0,8e-05]
[1753634265161,0.96048523,119620.0,119610.0,8e-05]
[1753634266047,0.002,119620.0,119610.0,0.53441434]
[1753634266265,0.002,119620.0,119610.0,1.73313109]
[1753634266481,0.13212,119620.0,119610.0,0.93544209]
[1753634266731,0.13212,119620.0,119610.0,1.03817009]
[1753634267018,0.13312,119620.0,119610.0,1.04629109]
[1753634267263,0.13312,119620.0,119610.0,0.93544209]
[1753634267502,0.18895887,119640.0,119630.0,0.2555586]
[1753634267738,0.18895887,119640.0,119630.0,0.76753952]
[1753634267975,0.18895887,119640.0,119630.0,0.86767952]
[1753634268253,0.32107887,119640.0,119630.0,0.86767952]
[1753634268685,0.18895887,119640.0,119630.0,0.86767952]
[1753634268942,0.32107887,119640.0,119630.0,0.86767952]
[1753634269182,0.18895887,119640.0,119630.0,0.86767952]
[1753634269421,0.32107887,119640.0,119630.0,0.86767952]
[1753634271002,0.32107887,119640.0,119630.0,0.89277219]
[1753634272522,0.32107887,119640.0,119630.0,0.89477219]
[1753634273436,0.18895887,119640.0,119630.0,0.5188251]
[1753634273657,0.32103887,119640.0,119630.0,0.5188251]
[1753634274340,0.32103887,119640.0,119630.0,0.89477219]
[1753634274843,0.32103887,119640.0,119630.0,0.5188251]
[1753634275510,0.32103887,119640.0,119630.0,0.46930857]
[1753634275734,0.33137664,119640.0,119630.0,0.5158751]
[1753634276006,0.32301887,119640.0,119630.0,0.5158751]
[1753634276229,0.32301887,119640.0,119630.0,0.5188551]
[1753634277314,0.32103887,119640.0,119630.0,0.5188551]
[1753634277536,0.32103887,119640.0,119630.0,0.49376243]
[1753634278383,0.32939664,119640.0,119630.0,0.49376243]
[1753634278606,0.32103887,119640.0,119630.0,0.49376243]
[1753634280295,0.33137671,119640.0,119630.0,0.54095243]
[1753634280560,0.33973462,119640.0,119630.0,0.51553452]
[1753634281236,0.34809267,119640.0,119630.0,0.51553452]
[1753634281450,0.32301887,119640.0,119630.0,0.51553452]
[1753634281674,0.33137664,119640.0,119630.0,0.51553452]
[1753634281889,0.33137664,119640.0,119630.0,0.51851452]
[1753634282378,0.34809253,119640.0,119630.0,0.51851452]
[1753634282568,0.33973448,119640.0,119630.0,0.51553452]
[1753634283006,0.35645072,119640.0,119630.0,0.51553452]
[1753634283437,0.34809253,119640.0,119630.0,0.51553452]
[1753634283675,0.63084889,119640.0,119630.0,0.32346861]
[1753634283897,0.46368072,119640.0,119630.0,0.3401859]
[1753634284113,0.47203898,119640.0,119630.0,0.33182722]
[1753634284553,0.46368121,119640.0,119630.0,0.30928604]
[1753634284776,0.46368121,119640.0,119630.0,0.26852729]
[1753634284993,0.46368121,119640.0,119630.0,0.2768859]
[1753634286057,0.45532295,119640.0,119630.0,0.2768859]
[1753634286301,0.46368121,119640.0,119630.0,0.3074859]
[1753634286958,0.47203954,119640.0,119630.0,0.3074859]
[1753634287626,0.47203954,119640.0,119630.0,0.2768859]
[1753634287849,0.18895887,119640.0,119630.0,0.4472159]
[1753634288108,0.32095887,119640.0,119630.0,0.88396865]
[1753634288751,0.32095887,119640.0,119630.0,0.5316932]
[1753634288969,0.32095887,119640.0,119630.0,0.88396865]
[1753634289632,0.18895887,119640.0,119630.0,0.88396865]
[1753634290123,0.32095887,119640.0,119630.0,0.88396865]
[1753634290766,0.18895887,119640.0,119630.0,0.88396865]
[1753634291234,0.32095887,119640.0,119630.0,0.88396865]
[1753634291926,0.18895887,119640.0,119630.0,1.67442567]
[1753634292140,0.32095887,119640.0,119630.0,1.56457667]
[1753634292358,0.32095887,119640.0,119630.0,1.69457667]
[1753634292784,0.32095887,119640.0,119630.0,1.69657667]
[1753634293634,0.32095887,119640.0,119630.0,1.69757667]
[1753634294524,0.32095887,119640.0,119630.0,0.73650669]
[1753634294742,0.32095887,119640.0,119630.0,1.08570765]
[1753634294961,0.32095887,119640.0,119630.0,0.5326932]
[1753634295193,0.32095887,119640.0,119630.0,0.88496865]
[1753634295886,0.32095887,119640.0,119630.0,0.5326932]
[1753634296106,0.32095887,119640.0,119630.0,0.88496865]
[1753634296761,0.32095887,119640.0,119630.0,0.5326932]
[1753634299015,0.97468664,119640.0,119630.0,0.40098709]
[1753634299243,0.98304497,119640.0,119630.0,0.25280979]
[1753634299457,0.43012887,119640.0,119630.0,0.41881631]
[1753634299710,0.32289887,119640.0,119630.0,0.78145058]
[1753634299912,0.34797323,119640.0,119630.0,0.88310065]
[1753634300124,0.6223714,119640.0,119630.0,0.23641666]
[1753634300344,0.32091887,119640.0,119630.0,0.97727559]
[1753634300574,0.18895887,119640.0,119630.0,0.97727559]
[1753634300792,0.32091887,119640.0,119630.0,0.97727559]
[1753634301487,0.18895887,119640.0,119630.0,0.99472461]
[1753634301695,0.32091887,119640.0,119630.0,0.99472461]
[1753634301908,0.18895887,119640.0,119630.0,0.99472461]
[1753634302127,0.32091887,119640.0,119630.0,1.01963541]
[1753634304293,0.32091887,119640.0,119630.0,0.66735996]
[1753634304519,0.32091887,119640.0,119630.0,1.01963541]
[1753634305718,0.32087887,119640.0,119630.0,1.01963541]
[1753634310626,0.32087887,119640.0,119630.0,0.66985996]
[1753634310849,0.32087887,119640.0,119630.0,1.02213541]
[1753634311489,0.32087887,119640.0,119630.0,0.66985996]
[1753634312180,0.32087887,119640.0,119630.0,1.02213541]
[1753634313111,0.32087887,119640.0,119630.0,1.63355041]
[1753634313351,0.18895887,119640.0,119630.0,1.63355041]
[1753634313591,0.32087887,119640.0,119630.0,1.63355041]
[1753634314092,0.19108887,119640.0,119630.0,1.15084594]
[1753634314303,0.32612887,119640.0,119630.0,1.50312139]
[1753634314525,0.32300887,119640.0,119630.0,1.15084594]
[1753634314749,0.42063887,119640.0,119630.0,0.91512539]
[1753634315189,0.42063887,119640.0,119630.0,1.01311539]
[1753634315403,0.32612887,119640.0,119630.0,1.01311539]
[1753634315624,0.32612887,119640.0,119630.0,1.01521539]
[1753634316510,0.79798868,119640.0,119630.0,0.16440463]
[1753634316761,0.79798861,119640.0,119630.0,0.26132732]
[1753634316980,0.4373549,119640.0,119630.0,0.27804461]
[1753634317411,0.44571316,119640.0,119630.0,0.27804461]
[1753634317624,0.4373549,119640.0,119630.0,0.27804461]
[1753634318742,0.42899678,119640.0,119630.0,0.27804461]
[1753634318958,0.43735483,119640.0,119630.0,0.27804461]
[1753634319403,0.44571302,119640.0,119630.0,0.27804461]
[1753634319621,0.44571295,119640.0,119630.0,0.27804461]
[1753634320277,0.43735483,119640.0,119630.0,0.27804461]
[1753634320498,0.44571302,119640.0,119630.0,0.27804461]
[1753634320938,0.43735483,119640.0,119630.0,0.27804461]
[1753634321152,0.43735476,119640.0,119630.0,0.27804461]
[1753634321610,0.28871887,119640.0,119630.0,0.63032006]
[1753634321852,0.19108887,119640.0,119630.0,0.84708736]
[1753634322071,0.32095887,119640.0,119630.0,0.88036736]
[1753634323473,0.32095887,119640.0,119630.0,0.52809191]
[1753634323702,0.32095887,119640.0,119630.0,0.88036736]
[1753634323922,0.32091887,119640.0,119630.0,1.00036736]
[1753634324792,0.32099887,119640.0,119630.0,1.00036736]
[1753634329976,0.32087887,119640.0,119630.0,1.44939438]
[1753634330189,0.32087887,119640.0,119630.0,1.43060338]
[1753634331050,0.32087887,119640.0,119630.0,1.43068338]
[1753634332237,0.32087887,119640.0,119630.0,1.07840793]
[1753634332452,0.32087887,119640.0,119630.0,1.43068338]
[1753634334046,0.32087887,119640.0,119630.0,1.33302838]
[1753634334485,0.32087887,119640.0,119630.0,0.98075293]
[1753634334689,0.32087887,119640.0,119630.0,1.33302838]
[1753634341581,0.18895887,119640.0,119630.0,1.27586938]
[1753634341780,0.32083887,119640.0,119630.0,1.27586938]
[1753634342465,0.32083887,119640.0,119630.0,0.89868313]
[1753634342663,0.32083887,119640.0,119630.0,0.79601213]
[1753634342873,0.32083887,119640.0,119630.0,1.14828758]
[1753634345853,0.32083887,119640.0,119630.0,1.48828758]
[1753634346062,0.32083887,119640.0,119630.0,1.49078758]
[1753634346706,0.18895887,119640.0,119630.0,5.44464958]
[1753634346922,0.32083887,119640.0,119630.0,5.41986058]
[1753634347146,1e-08,119640.0,119630.0,3.06422758]
[1753634347399,1e-08,119640.0,119630.0,2.07828412]
[1753634347632,0.00203001,119640.0,119630.0,1.89235671]
[1753634347846,0.00203001,119640.0,119630.0,4.65923071]
[1753634348070,0.09977001,119640.0,119630.0,3.04486869]
[1753634348270,0.09977001,119640.0,119630.0,1.5878311]
[1753634348502,0.09977001,119640.0,119630.0,1.90817369]
[1753634348864,0.09977001,119640.0,119630.0,0.8859031]
[1753634349027,0.09977001,119640.0,119630.0,2.26785469]
[1753634349861,0.00508001,119640.0,119630.0,2.49164569]
[1753634350079,0.00508001,119640.0,119630.0,2.49368569]
[1753634350509,0.00203001,119640.0,119630.0,2.49368569]
[1753634350712,1e-08,119640.0,119630.0,2.81613669]
[1753634350941,1e-08,119640.0,119630.0,2.69066669]
[1753634351138,1e-08,119640.0,119630.0,2.70811571]
[1753634352741,1e-08,119640.0,119630.0,2.73321271]
[1753634354725,1e-08,119640.0,119630.0,2.41287012]
[1753634354970,1e-08,119640.0,119630.0,2.73321271]
[1753634355176,1e-08,119640.0,119630.0,2.47170871]
[1753634355313,1e-08,119640.0,119630.0,2.30985171]
[1753634355958,1e-08,119640.0,119630.0,1.98950912]
[1753634356164,1e-08,119640.0,119630.0,2.30985171]
[1753634359334,1e-08,119640.0,119630.0,3.55062371]
[1753634360710,1e-08,119640.0,119630.0,1.48416171]
[1753634360956,1e-08,119640.0,119630.0,4.72284671]
[1753634361149,1e-08,119640.0,119630.0,4.26204571]
[1753634361348,1e-08,119640.0,119630.0,3.31132271]
[1753634361800,1e-08,119640.0,119630.0,3.30882271]
[1753634362792,1e-08,119640.0,119630.0,3.06580071]
[1753634363267,1e-08,119640.0,119630.0,2.74545812]
[1753634363472,1e-08,119640.0,119630.0,3.06580071]
[1753634365676,1e-08,119640.0,119630.0,3.03747171]
[1753634366692,1e-08,119640.0,119630.0,3.03997171]
[1753634368643,1e-08,119640.0,119630.0,3.60750171]
[1753634369513,1e-08,119640.0,119630.0,3.23925171]
[1753634369728,1e-08,119640.0,119630.0,4.45362871]
[1753634369946,1e-08,119640.0,119630.0,4.26675471]
[1753634370158,1e-08,119640.0,119630.0,3.30591471]
[1753634370821,1e-08,119640.0,119630.0,4.45918771]
[1753634371409,1e-08,119640.0,119630.0,3.72190571]
[1753634371643,1e-08,119640.0,119630.0,4.25347771]
[1753634371911,1e-08,119640.0,119630.0,4.21320371]
[1753634372127,1e-08,119640.0,119630.0,3.79259471]
[1753634372343,1e-08,119640.0,119630.0,3.49638471]
[1753634372571,1e-08,119640.0,119630.0,3.33484571]
[1753634372789,1e-08,119640.0,119630.0,3.97610071]
[1753634373011,1e-08,119640.0,119630.0,3.48969971]
[1753634373448,1e-08,119640.0,119630.0,1.48666171]
[1753634373668,1e-08,119640.0,119630.0,2.21574671]
[1753634373899,1e-08,119640.0,119630.0,2.33438671]
[1753634374577,1e-08,119640.0,119630.0,2.56164771]
[1753634374801,1e-08,119640.0,119630.0,3.55302671]
[1753634375520,1e-08,119640.0,119630.0,2.53091171]
[1753634375753,0.09849001,119640.0,119630.0,0.96175712]
[1753634375977,0.09849001,119640.0,119630.0,1.06629171]
[1753634376660,0.09849001,119640.0,119630.0,2.19815171]
[1753634376854,0.09849001,119640.0,119630.0,1.84066671]
[1753634377302,0.09849001,119640.0,119630.0,1.97246671]
[1753634379842,0.09849001,119640.0,119630.0,2.00516671]
[1753634379981,0.00514001,119640.0,119630.0,2.25340671]
[1753634382231,1e-08,119640.0,119630.0,2.25651671]
[1753634383847,1e-08,119640.0,119630.0,4.41287371]
[1753634384093,1e-08,119640.0,119630.0,4.25593271]
[1753634384316,1e-08,119640.0,119630.0,4.24285871]
[1753634384709,1e-08,119640.0,119630.0,1.48214171]
[1753634384917,1e-08,119640.0,119630.0,3.46319571]
[1753634385693,1e-08,119640.0,119630.0,4.66977571]
[1753634385890,1e-08,119640.0,119630.0,4.60354771]
[1753634386820,1e-08,119640.0,119630.0,4.34170871]
[1753634387033,1e-08,119640.0,119630.0,4.28197571]
[1753634387208,1e-08,119640.0,119630.0,1.48214171]
[1753634387415,1e-08,119640.0,119630.0,5.22689571]
[1753634388886,1e-08,119640.0,119630.0,3.77836471]
[1753634389103,0.10000001,119640.0,119630.0,3.96458071]
[1753634389301,0.10000001,119640.0,119630.0,1.91981671]
[1753634389541,0.10000001,119640.0,119630.0,1.90980771]
[1753634390157,0.10000001,119640.0,119630.0,3.67797171]
[1753634390933,0.10514001,119640.0,119630.0,1.02484912]
[1753634391139,0.19849001,119640.0,119630.0,1.56294471]